[Event "Titled Tuesday Blitz August 15 Late 2023"]
[White "Dardha, Daniel"]
[Black "Bluebaum, Matthias"]
[WhiteFideId "240990"]
[BlackFideId "24651516"]
[WhiteElo "2920"]
[BlackElo "3034"]
[Result "1-0"]
[Round "7"]
[TimeControl "180+1"]
[Date "2023.08.15"]
[WhiteClock "0:00:08"]
[BlackClock "0:00:27"]
[Board "8"]

1. e4 {[%clk 0:02:59]}  e6 {[%clk 0:02:59]} 2. d4 {[%clk 0:02:59]}  d5 {[%clk 0:03:00]} 3. Nc3 {[%clk 0:02:59]}  Nf6 {[%clk 0:02:59]} 4. exd5 {[%clk 0:02:58]}  exd5 {[%clk 0:02:59]} 5. Bd3 {[%clk 0:02:57]}  c5 {[%clk 0:03:00]} 6. Nf3 {[%clk 0:02:55]}  c4 {[%clk 0:03:00]} 7. Be2 {[%clk 0:02:55]}  Bb4 {[%clk 0:03:01]} 8. Bd2 {[%clk 0:02:54]}  O-O {[%clk 0:02:58]} 9. O-O {[%clk 0:02:53]}  Re8 {[%clk 0:02:56]} 10. Re1 {[%clk 0:02:50]}  Nc6 {[%clk 0:02:55]} 11. h3 {[%clk 0:02:48]}  h6 {[%clk 0:02:55]} 12. a3 {[%clk 0:02:43]}  Bd6 {[%clk 0:02:53]} 13. b3 {[%clk 0:02:43]}  cxb3 {[%clk 0:02:53]} 14. cxb3 {[%clk 0:02:44]}  Bf5 {[%clk 0:02:52]} 15. Be3 {[%clk 0:02:43]}  a6 {[%clk 0:02:48]} 16. b4 {[%clk 0:02:42]}  Rc8 {[%clk 0:02:47]} 17. Qb3 {[%clk 0:02:42]}  Bb8 {[%clk 0:02:42]} 18. Bf1 {[%clk 0:02:37]}  Qd6 {[%clk 0:02:39]} 19. Rac1 {[%clk 0:02:34]}  Be4 {[%clk 0:02:26]} 20. Nxe4 {[%clk 0:02:32]}  dxe4 {[%clk 0:02:27]} 21. Ne5 {[%clk 0:02:31]}  Nxe5 {[%clk 0:02:24]} 22. dxe5 {[%clk 0:02:31]}  Qxe5 {[%clk 0:02:24]} 23. g3 {[%clk 0:02:32]}  Rxc1 {[%clk 0:02:11]} 24. Bxc1 {[%clk 0:02:27]}  Qf5 {[%clk 0:02:01]} 25. Bg2 {[%clk 0:02:11]}  Ba7 {[%clk 0:01:48]} 26. Re2 {[%clk 0:02:10]}  Rd8 {[%clk 0:01:43]} 27. Qc2 {[%clk 0:01:48]}  Rc8 {[%clk 0:01:37]} 28. Qd1 {[%clk 0:01:29]}  Rc3 {[%clk 0:01:32]} 29. g4 {[%clk 0:00:19]}  Qd7 {[%clk 0:01:12]} 30. Rd2 {[%clk 0:00:18]}  Bxf2+ {[%clk 0:01:13]} 31. Kf1 {[%clk 0:00:10]}  Qb5+ {[%clk 0:01:13]} 32. Re2 {[%clk 0:00:05]}  Bb6 {[%clk 0:01:10]} 33. Bb2 {[%clk 0:00:02]}  Rd3 {[%clk 0:00:59]} 34. Qc2 {[%clk 0:00:02]}  Re3 {[%clk 0:00:40]} 35. Bc1 {[%clk 0:00:01]}  Rf3+ {[%clk 0:00:39]} 36. Ke1 {[%clk 0:00:01]}  Rg3 {[%clk 0:00:32]} 37. Qc8+ {[%clk 0:00:01]}  Kh7 {[%clk 0:00:32]} 38. Qf5+ {[%clk 0:00:01]}  Qxf5 {[%clk 0:00:32]} 39. gxf5 {[%clk 0:00:02]}  Bd4 {[%clk 0:00:21]} 40. Bxe4 {[%clk 0:00:02]}  Rxh3 {[%clk 0:00:17]} 41. Bxb7 {[%clk 0:00:02]}  a5 {[%clk 0:00:13]} 42. bxa5 {[%clk 0:00:02]}  Bc3+ {[%clk 0:00:14]} 43. Kf2 {[%clk 0:00:01]}  Bxa5 {[%clk 0:00:14]} 44. Kg2 {[%clk 0:00:02]}  Rb3 {[%clk 0:00:13]} 45. Ba6 {[%clk 0:00:02]}  Bb6 {[%clk 0:00:13]} 46. Bb2 {[%clk 0:00:02]}  Nd5 {[%clk 0:00:13]} 47. Kh1 {[%clk 0:00:01]}  Nf4 {[%clk 0:00:14]} 48. Rh2 {[%clk 0:00:02]}  Bd4 {[%clk 0:00:10]} 49. Bxd4 {[%clk 0:00:01]}  Rb1+ {[%clk 0:00:11]} 50. Bg1 {[%clk 0:00:02]}  Ra1 {[%clk 0:00:10]} 51. Rh4 {[%clk 0:00:02]}  Ne2 {[%clk 0:00:09]} 52. Bxe2 {[%clk 0:00:03]}  Rxa3 {[%clk 0:00:10]} 53. Rh2 {[%clk 0:00:03]}  Rg3 {[%clk 0:00:09]} 54. Rf2 {[%clk 0:00:04]}  Rh3+ {[%clk 0:00:09]} 55. Bh2 {[%clk 0:00:04]}  Rb3 {[%clk 0:00:10]} 56. Kg2 {[%clk 0:00:05]}  h5 {[%clk 0:00:10]} 57. Bg3 {[%clk 0:00:06]}  Kh6 {[%clk 0:00:11]} 58. Bf4+ {[%clk 0:00:06]}  Kh7 {[%clk 0:00:11]} 59. Bxh5 {[%clk 0:00:06]}  g6 {[%clk 0:00:12]} 60. fxg6+ {[%clk 0:00:06]}  fxg6 {[%clk 0:00:13]} 61. Bf3 {[%clk 0:00:06]}  Kg7 {[%clk 0:00:14]} 62. Be5+ {[%clk 0:00:07]}  Kh6 {[%clk 0:00:14]} 63. Kg3 {[%clk 0:00:06]}  Kg5 {[%clk 0:00:14]} 64. Bf4+ {[%clk 0:00:06]}  Kf5 {[%clk 0:00:15]} 65. Bd2 {[%clk 0:00:06]}  g5 {[%clk 0:00:15]} 66. Kg2 {[%clk 0:00:07]}  Kg6 {[%clk 0:00:15]} 67. Be4+ {[%clk 0:00:07]}  Kh5 {[%clk 0:00:16]} 68. Bf3+ {[%clk 0:00:04]}  Kh4 {[%clk 0:00:16]} 69. Re2 {[%clk 0:00:03]}  g4 {[%clk 0:00:15]} 70. Be1+ {[%clk 0:00:03]}  Kg5 {[%clk 0:00:15]} 71. Be4 {[%clk 0:00:03]}  Kf4 {[%clk 0:00:15]} 72. Bd2+ {[%clk 0:00:04]}  Ke5 {[%clk 0:00:15]} 73. Bc2+ {[%clk 0:00:04]}  Re3 {[%clk 0:00:14]} 74. Rxe3+ {[%clk 0:00:04]}  Kd4 {[%clk 0:00:15]} 75. Ra3 {[%clk 0:00:05]}  Kd5 {[%clk 0:00:16]} 76. Ra4 {[%clk 0:00:01]}  Kd6 {[%clk 0:00:17]} 77. Kg3 {[%clk 0:00:01]}  Kc6 {[%clk 0:00:18]} 78. Kxg4 {[%clk 0:00:02]}  Kc7 {[%clk 0:00:19]} 79. Kf4 {[%clk 0:00:03]}  Kb6 {[%clk 0:00:20]} 80. Ke4 {[%clk 0:00:03]}  Kb7 {[%clk 0:00:21]} 81. Rd4 {[%clk 0:00:04]}  Kc6 {[%clk 0:00:21]} 82. Be3 {[%clk 0:00:05]}  Kc7 {[%clk 0:00:22]} 83. Bd3 {[%clk 0:00:06]}  Kb7 {[%clk 0:00:23]} 84. Rd5 {[%clk 0:00:06]}  Kb8 {[%clk 0:00:24]} 85. Kd4 {[%clk 0:00:07]}  Ka8 {[%clk 0:00:25]} 86. Kc5 {[%clk 0:00:08]}  Kb8 {[%clk 0:00:26]} 87. Rd7 {[%clk 0:00:08]}  Ka8 {[%clk 0:00:26]} 88. Kb6 {[%clk 0:00:08]}  Kb8 {[%clk 0:00:27]} 89. Rd8# {[%clk 0:00:08]} 1-0


[Site "https://www.chess.com"]

[Event "Titled Tuesday Blitz August 15 Late 2023"]
[White "Sadhwani, Raunak"]
[Black "Eljanov, Pavel"]
[WhiteFideId "35093487"]
[BlackFideId "14102951"]
[WhiteElo "3020"]
[BlackElo "2919"]
[Result "1-0"]
[Round "7"]
[TimeControl "180+1"]
[Date "2023.08.15"]
[WhiteClock "0:00:08"]
[BlackClock "0:00:00"]
[Board "9"]

1. d4 {[%clk 0:02:58]}  d5 {[%clk 0:02:59]} 2. Nf3 {[%clk 0:02:58]}  Nf6 {[%clk 0:02:59]} 3. a3 {[%clk 0:02:54]}  Bf5 {[%clk 0:02:55]} 4. c4 {[%clk 0:02:49]}  c6 {[%clk 0:02:47]} 5. e3 {[%clk 0:02:47]}  e6 {[%clk 0:02:46]} 6. Nc3 {[%clk 0:02:44]}  Nbd7 {[%clk 0:02:46]} 7. Be2 {[%clk 0:02:43]}  Bd6 {[%clk 0:02:45]} 8. O-O {[%clk 0:02:43]}  O-O {[%clk 0:02:36]} 9. b3 {[%clk 0:02:43]}  Ne4 {[%clk 0:02:35]} 10. Bb2 {[%clk 0:02:42]}  Qf6 {[%clk 0:02:23]} 11. b4 {[%clk 0:02:25]}  Rad8 {[%clk 0:02:14]} 12. Rc1 {[%clk 0:02:21]}  Qh6 {[%clk 0:02:13]} 13. g3 {[%clk 0:02:15]}  Ndf6 {[%clk 0:02:08]} 14. c5 {[%clk 0:02:07]}  Bb8 {[%clk 0:02:07]} 15. Ne5 {[%clk 0:01:59]}  Nxc3 {[%clk 0:01:46]} 16. Bxc3 {[%clk 0:01:58]}  Ne4 {[%clk 0:01:46]} 17. Bb2 {[%clk 0:01:58]}  f6 {[%clk 0:01:44]} 18. Nf3 {[%clk 0:01:53]}  Rde8 {[%clk 0:01:34]} 19. b5 {[%clk 0:01:53]}  e5 {[%clk 0:01:33]} 20. bxc6 {[%clk 0:01:54]}  bxc6 {[%clk 0:01:34]} 21. Qa4 {[%clk 0:01:54]}  Bd7 {[%clk 0:01:31]} 22. Qa6 {[%clk 0:01:38]}  g5 {[%clk 0:01:20]} 23. Rfe1 {[%clk 0:01:11]}  exd4 {[%clk 0:01:20]} 24. Bxd4 {[%clk 0:01:07]}  f5 {[%clk 0:01:19]} 25. Bf1 {[%clk 0:00:59]}  f4 {[%clk 0:01:16]} 26. exf4 {[%clk 0:01:00]}  gxf4 {[%clk 0:01:16]} 27. Bg2 {[%clk 0:01:00]}  fxg3 {[%clk 0:01:09]} 28. hxg3 {[%clk 0:00:51]}  Bg4 {[%clk 0:00:59]} 29. Nh2 {[%clk 0:00:49]}  Bc8 {[%clk 0:00:56]} 30. Qd3 {[%clk 0:00:45]}  Bf5 {[%clk 0:00:55]} 31. Qe3 {[%clk 0:00:40]}  Qg6 {[%clk 0:00:53]} 32. Qb3 {[%clk 0:00:31]}  h5 {[%clk 0:00:53]} 33. Nf3 {[%clk 0:00:31]}  Bg4 {[%clk 0:00:27]} 34. Nh4 {[%clk 0:00:31]}  Qf7 {[%clk 0:00:27]} 35. Qb2 {[%clk 0:00:21]}  Ng5 {[%clk 0:00:21]} 36. Rxe8 {[%clk 0:00:18]}  Rxe8 {[%clk 0:00:21]} 37. Qd2 {[%clk 0:00:15]}  Ne6 {[%clk 0:00:18]} 38. Bb2 {[%clk 0:00:11]}  Kh7 {[%clk 0:00:10]} 39. Bf1 {[%clk 0:00:10]}  d4 {[%clk 0:00:05]} 40. Bd3+ {[%clk 0:00:09]}  Kg7 {[%clk 0:00:03]} 41. Bg6 {[%clk 0:00:09]}  Qe7 {[%clk 0:00:03]} 42. Bxe8 {[%clk 0:00:08]}  Qxe8 {[%clk 0:00:02]} 43. Bxd4+ {[%clk 0:00:09]}  Kf7 {[%clk 0:00:00]} 44. Bb2 {[%clk 0:00:08]} 1-0


[Site "https://www.chess.com"]

[Event "Titled Tuesday Blitz August 15 Late 2023"]
[White "Hakobyan, Aram"]
[Black "Lysyj, Igor"]
[WhiteFideId "13306677"]
[BlackFideId "4150120"]
[WhiteElo "2973"]
[BlackElo "2886"]
[Result "1-0"]
[Round "7"]
[TimeControl "180+1"]
[Date "2023.08.15"]
[WhiteClock "0:02:11"]
[BlackClock "0:01:01"]
[Board "11"]

1. d4 {[%clk 0:03:00]}  d5 {[%clk 0:02:59]} 2. c4 {[%clk 0:03:00]}  e6 {[%clk 0:02:59]} 3. g3 {[%clk 0:02:58]}  Nf6 {[%clk 0:02:59]} 4. Bg2 {[%clk 0:02:57]}  Be7 {[%clk 0:02:59]} 5. Nf3 {[%clk 0:02:56]}  O-O {[%clk 0:02:59]} 6. O-O {[%clk 0:02:57]}  dxc4 {[%clk 0:02:59]} 7. Qc2 {[%clk 0:02:57]}  a6 {[%clk 0:02:59]} 8. a4 {[%clk 0:02:56]}  Bd7 {[%clk 0:02:58]} 9. Bf4 {[%clk 0:02:54]}  Bc6 {[%clk 0:02:55]} 10. Nc3 {[%clk 0:02:53]}  b5 {[%clk 0:02:51]} 11. e4 {[%clk 0:02:46]}  b4 {[%clk 0:02:45]} 12. d5 {[%clk 0:02:39]}  exd5 {[%clk 0:02:31]} 13. Nxd5 {[%clk 0:02:36]}  Nxd5 {[%clk 0:02:29]} 14. exd5 {[%clk 0:02:36]}  Bxd5 {[%clk 0:02:29]} 15. Rad1 {[%clk 0:02:33]}  c6 {[%clk 0:02:29]} 16. Nd4 {[%clk 0:02:27]}  Bxg2 {[%clk 0:02:10]} 17. Kxg2 {[%clk 0:02:28]}  Qd5+ {[%clk 0:01:59]} 18. Nf3 {[%clk 0:02:19]}  Qc5 {[%clk 0:01:42]} 19. Rfe1 {[%clk 0:02:16]}  Bf6 {[%clk 0:01:30]} 20. Bd6 {[%clk 0:02:12]}  b3 {[%clk 0:01:01]} 21. Qe4 {[%clk 0:02:11]} 1-0


[Site "https://www.chess.com"]

[Event "Titled Tuesday Blitz August 15 Late 2023"]
[White "Lagarde, Maxime"]
[Black "Grigoriants, Sergey"]
[WhiteFideId "662399"]
[BlackFideId "4130804"]
[WhiteElo "2872"]
[BlackElo "2968"]
[Result "1/2-1/2"]
[Round "7"]
[TimeControl "180+1"]
[Date "2023.08.15"]
[WhiteClock "0:01:54"]
[BlackClock "0:00:11"]
[Board "12"]

1. Nc3 {[%clk 0:03:00]}  d5 {[%clk 0:02:54]} 2. e4 {[%clk 0:03:00]}  d4 {[%clk 0:02:46]} 3. Nce2 {[%clk 0:03:00]}  e5 {[%clk 0:02:45]} 4. Ng3 {[%clk 0:03:00]}  c5 {[%clk 0:02:42]} 5. Nf3 {[%clk 0:03:00]}  Bd6 {[%clk 0:02:40]} 6. Bc4 {[%clk 0:03:00]}  Nc6 {[%clk 0:02:37]} 7. a3 {[%clk 0:03:00]}  Qe7 {[%clk 0:02:18]} 8. d3 {[%clk 0:02:59]}  Be6 {[%clk 0:02:18]} 9. Nf5 {[%clk 0:02:58]}  Bxf5 {[%clk 0:02:17]} 10. exf5 {[%clk 0:02:59]}  Nf6 {[%clk 0:02:16]} 11. O-O {[%clk 0:02:56]}  h6 {[%clk 0:02:12]} 12. Nd2 {[%clk 0:02:55]}  O-O {[%clk 0:01:58]} 13. Qf3 {[%clk 0:02:52]}  e4 {[%clk 0:01:51]} 14. Nxe4 {[%clk 0:02:52]}  Ne5 {[%clk 0:01:50]} 15. Nxf6+ {[%clk 0:02:51]}  Qxf6 {[%clk 0:01:50]} 16. Qxb7 {[%clk 0:02:33]}  Nxc4 {[%clk 0:01:49]} 17. dxc4 {[%clk 0:02:32]}  Qxf5 {[%clk 0:01:49]} 18. Qb3 {[%clk 0:02:31]}  Rfe8 {[%clk 0:01:48]} 19. Qd3 {[%clk 0:02:29]}  Qxd3 {[%clk 0:01:16]} 20. cxd3 {[%clk 0:02:28]}  Re2 {[%clk 0:01:17]} 21. Rd1 {[%clk 0:02:28]}  a5 {[%clk 0:00:57]} 22. Kf1 {[%clk 0:02:27]}  Re6 {[%clk 0:00:46]} 23. a4 {[%clk 0:01:54]}  Rb8 {[%clk 0:00:25]} 24. Re1 {[%clk 0:01:51]}  Rxe1+ {[%clk 0:00:16]} 25. Kxe1 {[%clk 0:01:51]}  g5 {[%clk 0:00:16]} 26. h3 {[%clk 0:01:48]}  f5 {[%clk 0:00:16]} 27. Kd1 {[%clk 0:01:47]}  Kf7 {[%clk 0:00:15]} 28. Kc2 {[%clk 0:01:46]}  Bc7 {[%clk 0:00:15]} 29. Bd2 {[%clk 0:01:46]}  h5 {[%clk 0:00:14]} 30. f3 {[%clk 0:01:42]}  Kf6 {[%clk 0:00:12]} 31. Ra3 {[%clk 0:01:34]}  h4 {[%clk 0:00:08]} 32. Rb3 {[%clk 0:01:33]}  Rxb3 {[%clk 0:00:07]} 33. Kxb3 {[%clk 0:01:34]}  f4 {[%clk 0:00:05]} 34. Kc2 {[%clk 0:01:34]}  Bb6 {[%clk 0:00:04]} 35. Bc1 {[%clk 0:01:32]}  Ke5 {[%clk 0:00:04]} 36. Kd1 {[%clk 0:01:32]}  Kd6 {[%clk 0:00:04]} 37. Bd2 {[%clk 0:01:32]}  Bd8 {[%clk 0:00:04]} 38. Be1 {[%clk 0:01:33]}  Kc6 {[%clk 0:00:04]} 39. Kc2 {[%clk 0:01:34]}  Bc7 {[%clk 0:00:04]} 40. Kb1 {[%clk 0:01:34]}  Bd8 {[%clk 0:00:04]} 41. Ka2 {[%clk 0:01:35]}  Bc7 {[%clk 0:00:05]} 42. Kb3 {[%clk 0:01:36]}  Bd8 {[%clk 0:00:05]} 43. Kc2 {[%clk 0:01:37]}  Bc7 {[%clk 0:00:06]} 44. Bd2 {[%clk 0:01:37]}  Bd8 {[%clk 0:00:06]} 45. Bc1 {[%clk 0:01:38]}  Bc7 {[%clk 0:00:07]} 46. b3 {[%clk 0:01:38]}  Bd8 {[%clk 0:00:07]} 47. Bb2 {[%clk 0:01:39]}  Bc7 {[%clk 0:00:07]} 48. Ba1 {[%clk 0:01:39]}  Bd8 {[%clk 0:00:07]} 49. Kb1 {[%clk 0:01:40]}  Bc7 {[%clk 0:00:07]} 50. Ka2 {[%clk 0:01:41]}  Bd8 {[%clk 0:00:08]} 51. Bb2 {[%clk 0:01:42]}  Bc7 {[%clk 0:00:08]} 52. b4 {[%clk 0:01:42]}  axb4 {[%clk 0:00:08]} 53. Kb3 {[%clk 0:01:43]}  Kb6 {[%clk 0:00:07]} 54. Bc1 {[%clk 0:01:42]}  Ka5 {[%clk 0:00:05]} 55. Bd2 {[%clk 0:01:43]}  Bd6 {[%clk 0:00:05]} 56. Be1 {[%clk 0:01:44]}  Be7 {[%clk 0:00:06]} 57. Bf2 {[%clk 0:01:45]}  Bd6 {[%clk 0:00:06]} 58. Bg1 {[%clk 0:01:45]}  Be7 {[%clk 0:00:06]} 59. Bh2 {[%clk 0:01:46]}  Bd6 {[%clk 0:00:07]} 60. Bg1 {[%clk 0:01:47]}  Be7 {[%clk 0:00:07]} 61. Bf2 {[%clk 0:01:47]}  Bd6 {[%clk 0:00:08]} 62. Be1 {[%clk 0:01:48]}  Be7 {[%clk 0:00:08]} 63. Bd2 {[%clk 0:01:49]}  Bd6 {[%clk 0:00:09]} 64. Bc1 {[%clk 0:01:50]}  Be7 {[%clk 0:00:09]} 65. Bb2 {[%clk 0:01:51]}  Bd6 {[%clk 0:00:10]} 66. Ba1 {[%clk 0:01:52]}  Be7 {[%clk 0:00:10]} 67. Bb2 {[%clk 0:01:52]}  Bd6 {[%clk 0:00:11]} 68. Ba1 {[%clk 0:01:53]}  Be7 {[%clk 0:00:11]} 69. Bb2 {[%clk 0:01:54]} 1/2-1/2


[Site "https://www.chess.com"]

[Event "Titled Tuesday Blitz August 15 Late 2023"]
[White "Aronian, Levon"]
[Black "Hambleton, Aman"]
[WhiteFideId "13300474"]
[BlackFideId "2606577"]
[WhiteElo "3069"]
[BlackElo "2786"]
[Result "0-1"]
[Round "7"]
[TimeControl "180+1"]
[Date "2023.08.15"]
[WhiteClock "0:00:00"]
[BlackClock "0:00:03"]
[Board "15"]

1. e4 {[%clk 0:03:00]}  c5 {[%clk 0:02:54]} 2. Nf3 {[%clk 0:03:00]}  e6 {[%clk 0:02:53]} 3. d4 {[%clk 0:03:00]}  cxd4 {[%clk 0:02:54]} 4. Nxd4 {[%clk 0:03:01]}  Nc6 {[%clk 0:02:54]} 5. Nc3 {[%clk 0:03:01]}  Qc7 {[%clk 0:02:53]} 6. Be2 {[%clk 0:02:58]}  a6 {[%clk 0:02:47]} 7. Nxc6 {[%clk 0:02:57]}  Qxc6 {[%clk 0:02:46]} 8. O-O {[%clk 0:02:54]}  b5 {[%clk 0:02:45]} 9. Bf3 {[%clk 0:02:51]}  Bb7 {[%clk 0:02:45]} 10. e5 {[%clk 0:02:51]}  Qc7 {[%clk 0:02:45]} 11. Re1 {[%clk 0:02:48]}  Ne7 {[%clk 0:02:10]} 12. Bf4 {[%clk 0:02:47]}  Rc8 {[%clk 0:02:02]} 13. Bxb7 {[%clk 0:02:18]}  Qxb7 {[%clk 0:02:02]} 14. Ne4 {[%clk 0:02:18]}  Nd5 {[%clk 0:01:42]} 15. Bg3 {[%clk 0:02:16]}  Be7 {[%clk 0:01:34]} 16. c3 {[%clk 0:02:10]}  Rc4 {[%clk 0:01:22]} 17. Bh4 {[%clk 0:01:44]}  g5 {[%clk 0:00:53]} 18. Bxg5 {[%clk 0:01:08]}  Rxe4 {[%clk 0:00:46]} 19. Rxe4 {[%clk 0:01:09]}  Bxg5 {[%clk 0:00:46]} 20. Qf3 {[%clk 0:01:06]}  Qc6 {[%clk 0:00:30]} 21. Rd1 {[%clk 0:01:02]}  h5 {[%clk 0:00:14]} 22. g3 {[%clk 0:00:45]}  Be7 {[%clk 0:00:05]} 23. Rd3 {[%clk 0:00:41]}  f5 {[%clk 0:00:04]} 24. Red4 {[%clk 0:00:36]}  Bc5 {[%clk 0:00:02]} 25. Rh4 {[%clk 0:00:35]}  Be7 {[%clk 0:00:01]} 26. Rxh5 {[%clk 0:00:35]}  Rxh5 {[%clk 0:00:02]} 27. Qxh5+ {[%clk 0:00:35]}  Kd8 {[%clk 0:00:02]} 28. Qe2 {[%clk 0:00:27]}  Qc5 {[%clk 0:00:02]} 29. h4 {[%clk 0:00:26]}  Kc7 {[%clk 0:00:02]} 30. h5 {[%clk 0:00:26]}  Bg5 {[%clk 0:00:02]} 31. Kg2 {[%clk 0:00:24]}  Bh6 {[%clk 0:00:02]} 32. Rd4 {[%clk 0:00:20]}  Qc6 {[%clk 0:00:02]} 33. Kh2 {[%clk 0:00:19]}  f4 {[%clk 0:00:02]} 34. g4 {[%clk 0:00:18]}  Bg5 {[%clk 0:00:02]} 35. a4 {[%clk 0:00:17]}  Nb6 {[%clk 0:00:02]} 36. axb5 {[%clk 0:00:16]}  axb5 {[%clk 0:00:03]} 37. Qe4 {[%clk 0:00:14]}  Qc5 {[%clk 0:00:03]} 38. Kg2 {[%clk 0:00:12]}  Nd5 {[%clk 0:00:02]} 39. Qg6 {[%clk 0:00:10]}  Bh4 {[%clk 0:00:02]} 40. h6 {[%clk 0:00:09]}  f3+ {[%clk 0:00:02]} 41. Kxf3 {[%clk 0:00:09]}  Qc6 {[%clk 0:00:02]} 42. Qe4 {[%clk 0:00:06]}  Qc5 {[%clk 0:00:01]} 43. Ke2 {[%clk 0:00:04]}  Qf8 {[%clk 0:00:01]} 44. Qf3 {[%clk 0:00:02]}  Qxh6 {[%clk 0:00:01]} 45. Rd1 {[%clk 0:00:02]}  Nf4+ {[%clk 0:00:02]} 46. Kf1 {[%clk 0:00:02]}  Bg5 {[%clk 0:00:02]} 47. Ra1 {[%clk 0:00:02]}  Qh3+ {[%clk 0:00:02]} 48. Qxh3 {[%clk 0:00:01]}  Nxh3 {[%clk 0:00:03]} 49. Ra7+ {[%clk 0:00:02]}  Kc6 {[%clk 0:00:03]} 50. Ra6+ {[%clk 0:00:02]}  Kc7 {[%clk 0:00:03]} 51. Ra7+ {[%clk 0:00:03]}  Kc6 {[%clk 0:00:03]} 52. Ke2 {[%clk 0:00:03]}  Nf4+ {[%clk 0:00:03]} 53. Kf3 {[%clk 0:00:04]}  Nd5 {[%clk 0:00:02]} 54. Ra6+ {[%clk 0:00:04]}  Kb7 {[%clk 0:00:02]} 55. Ra1 {[%clk 0:00:04]}  Kc6 {[%clk 0:00:02]} 56. Rh1 {[%clk 0:00:05]}  Bd2 {[%clk 0:00:01]} 57. Rh5 {[%clk 0:00:04]}  Bc1 {[%clk 0:00:01]} 58. g5 {[%clk 0:00:04]}  Ne7 {[%clk 0:00:02]} 59. Kg4 {[%clk 0:00:04]}  Kd5 {[%clk 0:00:02]} 60. f4 {[%clk 0:00:04]}  Ng6 {[%clk 0:00:01]} 61. Rh1 {[%clk 0:00:04]}  Bxf4 {[%clk 0:00:01]} 62. Rh6 {[%clk 0:00:04]}  Bxg5 {[%clk 0:00:01]} 63. Rxg6 {[%clk 0:00:03]}  Bc1 {[%clk 0:00:02]} 64. b3 {[%clk 0:00:02]}  Bb2 {[%clk 0:00:02]} 65. Rg7 {[%clk 0:00:02]}  Kc6 {[%clk 0:00:02]} 66. Kf3 {[%clk 0:00:02]}  Bxc3 {[%clk 0:00:02]} 67. Ke4 {[%clk 0:00:03]}  d6 {[%clk 0:00:01]} 68. Rg6 {[%clk 0:00:03]}  Bxe5 {[%clk 0:00:01]} 69. Rxe6 {[%clk 0:00:03]}  Kc5 {[%clk 0:00:02]} 70. Kd3 {[%clk 0:00:04]}  Kb4 {[%clk 0:00:03]} 71. Kc2 {[%clk 0:00:04]}  Kc5 {[%clk 0:00:03]} 72. Rh6 {[%clk 0:00:04]}  b4 {[%clk 0:00:02]} 73. Rh4 {[%clk 0:00:05]}  Bc3 {[%clk 0:00:03]} 74. Kd3 {[%clk 0:00:05]}  d5 {[%clk 0:00:03]} 75. Rh7 {[%clk 0:00:05]}  Bb2 {[%clk 0:00:03]} 76. Rc7+ {[%clk 0:00:05]}  Kd6 {[%clk 0:00:03]} 77. Rc8 {[%clk 0:00:05]}  Bc3 {[%clk 0:00:03]} 78. Ke3 {[%clk 0:00:05]}  Ke5 {[%clk 0:00:02]} 79. Re8+ {[%clk 0:00:05]}  Kd6 {[%clk 0:00:01]} 80. Kf4 {[%clk 0:00:05]}  Bd2+ {[%clk 0:00:02]} 81. Kf5 {[%clk 0:00:05]}  Bc3 {[%clk 0:00:03]} 82. Rc8 {[%clk 0:00:04]}  Kd7 {[%clk 0:00:02]} 83. Ra8 {[%clk 0:00:04]}  Kd6 {[%clk 0:00:03]} 84. Ra5 {[%clk 0:00:04]}  Bd4 {[%clk 0:00:02]} 85. Ra6+ {[%clk 0:00:04]}  Kd7 {[%clk 0:00:01]} 86. Re6 {[%clk 0:00:03]}  Bc3 {[%clk 0:00:01]} 87. Rb6 {[%clk 0:00:03]}  Kc7 {[%clk 0:00:01]} 88. Rg6 {[%clk 0:00:03]}  Kd7 {[%clk 0:00:02]} 89. Kg5 {[%clk 0:00:01]}  Bd2+ {[%clk 0:00:02]} 90. Kg4 {[%clk 0:00:01]}  Bc3 {[%clk 0:00:02]} 91. Kf5 {[%clk 0:00:02]}  Bb2 {[%clk 0:00:02]} 92. Rg4 {[%clk 0:00:02]}  Bc3 {[%clk 0:00:02]} 93. Rg5 {[%clk 0:00:02]}  Kd6 {[%clk 0:00:02]} 94. Rg4 {[%clk 0:00:03]}  Bd2 {[%clk 0:00:02]} 95. Rh4 {[%clk 0:00:03]}  Bc3 {[%clk 0:00:02]} 96. Rh6+ {[%clk 0:00:03]}  Kd7 {[%clk 0:00:02]} 97. Rg6 {[%clk 0:00:02]}  Bb2 {[%clk 0:00:02]} 98. Rb6 {[%clk 0:00:02]}  Bc3 {[%clk 0:00:02]} 99. Re6 {[%clk 0:00:02]}  Bb2 {[%clk 0:00:02]} 100. Rg6 {[%clk 0:00:02]}  Bc3 {[%clk 0:00:03]} 101. Rb6 {[%clk 0:00:03]}  Kc7 {[%clk 0:00:02]} 102. Rh6 {[%clk 0:00:02]}  Kd7 {[%clk 0:00:02]} 103. Kg6 {[%clk 0:00:02]}  Ke6 {[%clk 0:00:03]} 104. Rh5 {[%clk 0:00:02]}  d4 {[%clk 0:00:02]} 105. Kg5 {[%clk 0:00:00]}  Ke5 {[%clk 0:00:03]} 0-1


[Site "https://www.chess.com"]

[Event "Titled Tuesday Blitz August 15 Late 2023"]
[White "Tristan, Leonardo"]
[Black "Andreikin, Dmitry"]
[WhiteFideId "113816"]
[BlackFideId "4158814"]
[WhiteElo "2781"]
[BlackElo "3011"]
[Result "1-0"]
[Round "7"]
[TimeControl "180+1"]
[Date "2023.08.15"]
[WhiteClock "0:00:22"]
[BlackClock "0:00:45"]
[Board "16"]

1. d4 {[%clk 0:03:00]}  Nf6 {[%clk 0:02:59]} 2. Nf3 {[%clk 0:03:01]}  e6 {[%clk 0:02:59]} 3. Bf4 {[%clk 0:03:01]}  b6 {[%clk 0:03:00]} 4. e3 {[%clk 0:03:01]}  Bb7 {[%clk 0:03:00]} 5. Nbd2 {[%clk 0:03:01]}  Nh5 {[%clk 0:02:59]} 6. Bg5 {[%clk 0:03:02]}  Be7 {[%clk 0:03:00]} 7. Bxe7 {[%clk 0:03:02]}  Qxe7 {[%clk 0:03:01]} 8. Bd3 {[%clk 0:03:02]}  d6 {[%clk 0:03:01]} 9. Qe2 {[%clk 0:03:02]}  a6 {[%clk 0:03:00]} 10. g4 {[%clk 0:02:57]}  Nf6 {[%clk 0:03:00]} 11. g5 {[%clk 0:02:57]}  Nd5 {[%clk 0:02:58]} 12. a3 {[%clk 0:02:51]}  c5 {[%clk 0:02:57]} 13. c4 {[%clk 0:02:50]}  Nc7 {[%clk 0:02:56]} 14. Rg1 {[%clk 0:02:48]}  Nc6 {[%clk 0:02:54]} 15. O-O-O {[%clk 0:02:43]}  b5 {[%clk 0:02:50]} 16. dxc5 {[%clk 0:02:33]}  dxc5 {[%clk 0:02:49]} 17. Be4 {[%clk 0:02:31]}  O-O-O {[%clk 0:02:47]} 18. Nb3 {[%clk 0:02:20]}  Kb8 {[%clk 0:02:42]} 19. Qc2 {[%clk 0:02:14]}  f6 {[%clk 0:02:23]} 20. cxb5 {[%clk 0:02:10]}  Nxb5 {[%clk 0:02:21]} 21. Nxc5 {[%clk 0:01:50]}  Rc8 {[%clk 0:01:38]} 22. Rd7 {[%clk 0:01:42]}  Qxc5 {[%clk 0:01:38]} 23. Rxb7+ {[%clk 0:01:08]}  Kxb7 {[%clk 0:01:39]} 24. Qxc5 {[%clk 0:01:07]}  f5 {[%clk 0:01:40]} 25. Kb1 {[%clk 0:00:47]}  fxe4 {[%clk 0:01:39]} 26. Ne5 {[%clk 0:00:42]}  Ncd4 {[%clk 0:01:14]} 27. Qb4 {[%clk 0:00:37]}  Nc2 {[%clk 0:01:04]} 28. Qxe4+ {[%clk 0:00:37]}  Ka7 {[%clk 0:01:02]} 29. Rc1 {[%clk 0:00:27]}  Nd6 {[%clk 0:00:49]} 30. Nc6+ {[%clk 0:00:22]}  Kb6 {[%clk 0:00:45]} 31. Qxc2 {[%clk 0:00:22]} 1-0


[Site "https://www.chess.com"]